[Event "Najdorf Memorial-A 2022"]
[Site "Warsaw"]
[Date "2022.07.10"]
[Round "2.3"]
[White "Maslanka, Wojciech"]
[Black "Pacan-Milej, Kosma"]
[Result "0-1"]
[ECO "E70"]
[WhiteElo "2000"]
[BlackElo "2412"]
[Annotator "RC"]
[PlyCount "90"]
[EventDate "2022.07.09"]
[EventType "swiss"]
[EventCountry "POL"]
[SourceTitle "playchess.com"]
[Source "ChessBase"]
[SourceQuality "1"]
[TimeControl "40/5400+30:1800+30"]

1. d4 {[%emt 0:00:03]} Nf6 {[%emt 0:00:15]} 2. c4 {[%emt 0:00:07]} g6 {[%emt 0:00:04]} 3. Nc3 {[%emt 0:00:16]} Bg7 {[%emt 0:00:11]} 4. e4 {[%emt 0:00:29]} O-O {[%emt 0:00:07]} 5. h4 {[%emt 0:01:13]} d6 {[%emt 0:00:10]} 6. Be2 {[%emt 0:00:35]} Nc6 {[%emt 0:00:17]} 7. d5 {[%emt 0:20:07]} Ne5 {[%emt 0:00:10]} 8. h5 {[%emt 0:02:40]} gxh5 {[%emt 0:12:21]} 9. Nh3 {[%emt 0:12:35]} e6 {[%emt 0:20:12]} 10. Nf4 {[%emt 0:07:58]} exd5 {[%emt 0:01:51]} 11. cxd5 {[%emt 0:01:01]} h4 {[%emt 0:10:09]} 12. Be3 {[%emt 0:04:57]} Nfg4 {[%emt 0:28:45]} 13. Bd2 {[%emt 0:03:55]} f5 {[%emt 0:06:40]} 14. f3 {[%emt 0:00:07]} Nf6 {[%emt 0:00:37]} 15. Qb3 {[%emt 0:01:58]} fxe4 {[%emt 0:01:31]} 16. fxe4 {[%emt 0:00:11]} Ng6 {[%emt 0:03:27]} 17. Nxg6 {[%emt 0:10:56]} hxg6 {[%emt 0:00:03]} 18. O-O-O {[%emt 0:07:34]} Ng4 {[%emt 0:01:03]} 19. Rhf1 {[%emt 0:01:33]} Ne5 {[%emt 0:02:31]} 20. Nb5 {[%emt 0:01:24]} Bd7 {[%emt 0:02:20]} 21. Nd4 {[%emt 0:00:35]} Rxf1 {[%emt 0:02:08]} 22. Rxf1 {[%emt 0:00:13]} b6 {[%emt 0:00:38]} 23. Bb5 {[%emt 0:07:46]} Bg4 {[%emt 0:01:12]} 24. Ne6 {[%emt 0:00:34]} Bxe6 {[%emt 0:01:17]} 25. dxe6 {[%emt 0:00:06]} Qe7 {[%emt 0:00:43]} 26. Bc3 {[%emt 0:00:30]} Rf8 {[%emt 0:01:38]} 27. Rxf8+ {[%emt 0:00:11]} Kxf8 {[%emt 0:00:14]} 28. Bxe5 {[%emt 0:00:08]} Bxe5 {[%emt 0:00:21]} 29. Qf3+ {[%emt 0:01:01]} Kg7 {[%emt 0:00:05]} 30. Bc4 {[%emt 0:00:49]} Qg5+ {[%emt 0:01:48]} 31. Kc2 {[%emt 0:03:31]} Bf6 {[%emt 0:00:02]} 32. Bd5 {[%emt 0:06:58]} c6 {[%emt 0:01:26]} 33. Bb3 {[%emt 0:00:07]} Qe5 {[%emt 0:00:22]} 34. Kd1 {[%emt 0:00:10]} Qd4+ {[%emt 0:00:44]} 35. Ke1 {[%emt 0:00:09]} Qxb2 {[%emt 0:00:31]} 36. Qd3 {[%emt 0:00:42]} Qe5 {[%emt 0:02:00]} 37. Kf1 {[%emt 0:00:30]} Qf4+ {[%emt 0:00:31]} 38. Kg1 {[%emt 0:00:32]} Qc1+ {[%emt 0:00:30]} 39. Kf2 {[%emt 0:00:09]} Qf4+ {[%emt 0:00:24]} 40. Kg1 {[%emt 0:00:00]} c5 {[%emt 0:00:00]} 41. Qf3 {[%emt 0:09:57]} Qc1+ {[%emt 0:06:05]} 42. Kh2 {[%emt 0:01:26]} c4 {[%emt 0:02:26]} 43. Ba4 {[%emt 0:00:23]} Qg5 {[%emt 0:01:34]} 44. Bd7 {[%emt 0:00:49]} c3 {[%emt 0:01:13]} 45. Qd3 {[%emt 0:00:10]} Qg3+ {[%emt 0:00:10]} 0-1

[Event "Najdorf Memorial-A 2022"]
[Site "Warsaw"]
[Date "2022.07.10"]
[Round "2.3"]
[White "Ratajczak, Hubert"]
[Black "Vanduyfhuys, Daria"]
[Result "1-0"]
[ECO "B90"]
[WhiteElo "1943"]
[BlackElo "2094"]
[Annotator "NA RC"]
[PlyCount "80"]
[EventDate "2022.07.09"]
[EventType "swiss"]
[EventCountry "POL"]
[SourceTitle "playchess.com"]
[Source "ChessBase"]
[SourceQuality "1"]
[TimeControl "40/5400+30:1800+30"]

1. e4 c5 2. Nf3 d6 3. d4 cxd4 4. Nxd4 Nf6 5. Nc3 a6 6. h4 e5 7. Nb3 Be7 8. Bg5 Be6 9. Bxf6 Bxf6 10. g3 O-O 11. Qd2 Nc6 12. O-O-O Bxb3 13. cxb3 Nd4 14. Bh3 b5 15. Nd5 Ra7 16. Kb1 Be7 17. Qd3 Qa8 18. Rc1 a5 19. Rc3 b4 20. Rc4 Bd8 21. Rhc1 a4 22. Rxb4 f5 23. Qc4 Kh8 24. exf5 axb3 25. a3 Ba5 26. Ra4 h6 27. Bg2 Bd2 28. Rxa7 Qxa7 29. Rd1 Ba5 30. g4 Qd7 31. Rc1 Bd2 32. Qc7 Qb5 33. Rc4 Ba5 34. Nc3 Qa6 35. Qe7 Qxc4 36. Qxf8+ Kh7 37. f6 Qd3+ 38. Ka1 Nc2+ 39. Kb1 Nxa3+ 40. Ka1 Qb1+ 1-0

[Event "Najdorf Memorial-A 2022"]
[Site "Warsaw"]
[Date "2022.07.10"]
[Round "2.4"]
[White "Romanishin, Oleg M"]
[Black "Dovzhenko, Alexander"]
[Result "1-0"]
[ECO "A05"]
[WhiteElo "2404"]
[BlackElo "1973"]
[Annotator "RC"]
[PlyCount "37"]
[EventDate "2022.07.09"]
[EventType "swiss"]
[EventCountry "POL"]
[SourceTitle "playchess.com"]
[Source "ChessBase"]
[SourceQuality "1"]
[TimeControl "40/5400+30:1800+30"]

1. Nf3 {[%emt 0:00:10]} Nf6 {[%emt 0:06:17]} 2. g3 {[%emt 0:00:10]} g6 {[%emt 0:00:35]} 3. c4 {[%emt 0:01:29]} Bg7 {[%emt 0:00:45]} 4. Bg2 {[%emt 0:00:07]} O-O {[%emt 0:00:44]} 5. O-O {[%emt 0:06:47]} d6 {[%emt 0:02:28]} 6. d4 {[%emt 0:00:08]} a5 {[%emt 0:01:07]} 7. Nc3 {[%emt 0:01:41]} Nbd7 {[%emt 0:03:07]} 8. d5 {[%emt 0:23:46]} Nc5 {[%emt 0:19:21]} 9. Nd4 {[%emt 0:02:30]} e5 {[%emt 0:03:27]} 10. dxe6 {[%emt 0:00:38]} fxe6 {[%emt 0:00:03]} 11. Nb3 {[%emt 0:00:58]} Nxb3 {[%emt 0:04:48]} 12. axb3 {[%emt 0:00:39]} Ra6 {[%emt 0:02:28]} 13. e4 {[%emt 0:05:15]} Nd7 {[%emt 0:02:42]} 14. Be3 {[%emt 0:02:17]} Qe7 {[%emt 0:02:24]} 15. f4 {[%emt 0:02:21]} e5 {[%emt 0:03:35]} 16. Nd5 {[%emt 0:10:14]} Qd8 {[%emt 0:00:09]} 17. f5 {[%emt 0:01:20]} Nc5 {[%emt 0:09:58]} 18. f6 {[%emt 0:03:34]} Bxf6 {[%emt 0:01:34]} 19. Nxf6+ {[%emt 0:00:38]} 1-0

[Event "Najdorf Memorial-A 2022"]
[Site "Warsaw"]
[Date "2022.07.10"]
[Round "2.4"]
[White "Janeczko, Jakub"]
[Black "Lee, Hyuk"]
[Result "1-0"]
[ECO "C42"]
[WhiteElo "2080"]
[BlackElo "1880"]
[Annotator "NA RC"]
[PlyCount "76"]
[EventDate "2022.07.09"]
[EventType "swiss"]
[EventCountry "POL"]
[SourceTitle "playchess.com"]
[Source "ChessBase"]
[SourceQuality "1"]
[TimeControl "40/5400+30:1800+30"]

1. e4 {[%emt 0:00:04]} e5 {[%emt 0:00:17]} 2. Nf3 {[%emt 0:00:06]} Nf6 {[%emt 0:00:08]} 3. Nxe5 {[%emt 0:00:06]} d6 {[%emt 0:00:05]} 4. Nf3 {[%emt 0:01:15]} Nxe4 {[%emt 0:00:07]} 5. d3 {[%emt 0:00:56]} Nf6 {[%emt 0:00:06]} 6. d4 {[%emt 0:00:07]} d5 {[%emt 0:00:11]} 7. Bd3 {[%emt 0:00:09]} Bd6 {[%emt 0:00:05]} 8. O-O {[%emt 0:03:29]} O-O {[%emt 0:00:05]} 9. Re1 {[%emt 0:05:17]} Bg4 {[%emt 0:01:27]} 10. Nbd2 {[%emt 0:00:17]} Nbd7 {[%emt 0:01:14]} 11. Nf1 {[%emt 0:00:31]} Re8 {[%emt 0:02:59]} 12. Rxe8+ {[%emt 0:00:51]} Qxe8 {[%emt 0:00:19]} 13. Ne3 {[%emt 0:01:50]} Bh5 {[%emt 0:02:06]} 14. h3 c6 {[%emt 0:05:43]} 15. Nf5 {[%emt 0:27:23]} Bc7 {[%emt 0:02:46]} 16. b3 {[%emt 0:12:40]} Ne4 {[%emt 0:13:01]} 17. Ba3 {[%emt 0:01:30]} Ndf6 {[%emt 0:30:01]} 18. Qc1 {[%emt 0:10:04]} Qd7 {[%emt 0:03:12]} 19. Ne7+ {[%emt 0:04:49]} Kh8 {[%emt 0:00:20]} 20. Ne5 {[%emt 0:00:28]} Qe6 {[%emt 0:03:25]} 21. Qf4 {[%emt 0:03:17]} Re8 {[%emt 0:05:32]} 22. g4 {[%emt 0:09:34]} g5 {[%emt 0:00:06]} 23. Qf5 {[%emt 0:05:50]} Nd6 {[%emt 0:11:00]} 24. Qxg5 {[%emt 0:07:33]} Qxe7 {[%emt 0:00:16]} 25. Re1 {[%emt 0:00:58]} Qd8 {[%emt 0:06:17]} 26. Qh6 {[%emt 0:01:24]} Bg6 {[%emt 0:05:17]} 27. Bxg6 {[%emt 0:01:16]} fxg6 {[%emt 0:00:06]} 28. Bxd6 {[%emt 0:00:24]} Bxd6 29. Nf7+ {[%emt 0:00:12]} Kg8 {[%emt 0:01:21]} 30. Nxd8 {[%emt 0:00:02]} Rxe1+ {[%emt 0:00:12]} 31. Kg2 {[%emt 0:00:07]} Ne4 {[%emt 0:01:12]} 32. Ne6 {[%emt 0:00:29]} Kf7 {[%emt 0:00:24]} 33. Ng5+ {[%emt 0:00:57]} Nxg5 {[%emt 0:00:04]} 34. Qxg5 {[%emt 0:00:05]} Re7 {[%emt 0:03:42]} 35. Qd2 {[%emt 0:00:22]} Ke8 {[%emt 0:00:52]} 36. c3 {[%emt 0:00:38]} Rf7 {[%emt 0:00:10]} 37. h4 {[%emt 0:00:09]} Bf4 {[%emt 0:00:05]} 38. Qe2+ {[%emt 0:00:20]} Kd7 {[%emt 0:00:06]} 1-0

[Event "Najdorf Memorial-A 2022"]
[Site "Warsaw"]
[Date "2022.07.10"]
[Round "2.5"]
[White "Shilov, Sergej"]
[Black "Skrzypczynski, Kacper"]
[Result "1-0"]
[ECO "A29"]
[WhiteElo "2048"]
[BlackElo "1793"]
[Annotator "NA RC"]
[PlyCount "43"]
[EventDate "2022.07.09"]
[EventType "swiss"]
[EventCountry "POL"]
[SourceTitle "playchess.com"]
[Source "ChessBase"]
[SourceQuality "1"]
[TimeControl "40/5400+30:1800+30"]

1. c4 {[%emt 0:00:05]} Nf6 {[%emt 0:00:10]} 2. Nc3 {[%emt 0:00:11]} e5 {[%emt 0:00:22]} 3. Nf3 {[%emt 0:00:33]} Nc6 {[%emt 0:00:11]} 4. g3 {[%emt 0:01:00]} Bc5 {[%emt 0:02:42]} 5. Nxe5 {[%emt 0:08:31]} Bxf2+ {[%emt 0:03:05]} 6. Kxf2 {[%emt 0:00:02]} Nxe5 {[%emt 0:00:07]} 7. d4 {[%emt 0:00:10]} Nxc4 {[%emt 0:21:53]} 8. e4 {[%emt 0:00:31]} Nb6 {[%emt 0:00:12]} 9. e5 {[%emt 0:01:10]} Nfd5 {[%emt 0:02:37]} 10. Qg4 {[%emt 0:06:50]} Kf8 {[%emt 0:02:06]} 11. Nxd5 {[%emt 0:16:08]} Nxd5 {[%emt 0:02:31]} 12. Qf3 {[%emt 0:02:06]} Nb6 {[%emt 0:01:38]} 13. d5 {[%emt 0:01:07]} Qe7 {[%emt 0:00:56]} 14. Bg2 {[%emt 0:07:14]} Qxe5 {[%emt 0:02:22]} 15. Re1 {[%emt 0:01:11]} Qd4+ {[%emt 0:01:03]} 16. Be3 {[%emt 0:00:56]} Qxb2+ {[%emt 0:04:06]} 17. Kg1 {[%emt 0:07:44]} d6 {[%emt 0:07:57]} 18. Rab1 {[%emt 0:02:49]} Qxa2 {[%emt 0:08:26]} 19. Bxb6 {[%emt 0:04:50]} cxb6 {[%emt 0:04:07]} 20. Qe3 {[%emt 0:00:52]} g5 {[%emt 0:04:32]} 21. Qe7+ {[%emt 0:00:24]} Kg7 {[%emt 0:00:51]} 22. Qxg5+ {[%emt 0:00:09]} 1-0

[Event "Najdorf Memorial-A 2022"]
[Site "Warsaw"]
[Date "2022.07.10"]
[Round "2.5"]
[White "Podgorski, Maciej"]
[Black "Golubka, Petro"]
[Result "0-1"]
[ECO "B99"]
[WhiteElo "1967"]
[BlackElo "2378"]
[Annotator "RC"]
[PlyCount "74"]
[EventDate "2022.07.09"]
[EventType "swiss"]
[EventCountry "POL"]
[SourceTitle "playchess.com"]
[Source "ChessBase"]
[SourceQuality "1"]
[TimeControl "40/5400+30:1800+30"]

1. e4 {[%emt 0:01:23]} c5 {[%emt 0:00:38]} 2. Nf3 {[%emt 0:00:22]} d6 {[%emt 0:00:24]} 3. d4 {[%emt 0:00:23]} cxd4 {[%emt 0:00:06]} 4. Nxd4 {[%emt 0:00:05]} Nf6 {[%emt 0:00:03]} 5. Nc3 {[%emt 0:00:06]} a6 {[%emt 0:00:02]} 6. Bg5 {[%emt 0:01:58]} e6 {[%emt 0:00:04]} 7. f4 {[%emt 0:00:19]} Nbd7 {[%emt 0:00:31]} 8. Qf3 {[%emt 0:00:34]} Qc7 {[%emt 0:00:23]} 9. O-O-O {[%emt 0:07:47]} Be7 {[%emt 0:00:08]} 10. g4 {[%emt 0:01:15]} b5 {[%emt 0:01:14]} 11. Bxf6 {[%emt 0:00:43]} Nxf6 {[%emt 0:00:59]} 12. g5 {[%emt 0:00:18]} Nd7 {[%emt 0:00:05]} 13. f5 {[%emt 0:00:20]} Ne5 {[%emt 0:00:41]} 14. Qh5 {[%emt 0:12:33]} g6 {[%emt 0:00:16]} 15. Qe2 {[%emt 0:09:06]} Bxg5+ {[%emt 0:00:07]} 16. Kb1 {[%emt 0:00:06]} b4 {[%emt 0:00:24]} 17. Na4 {[%emt 0:00:40]} Bd7 {[%emt 0:00:10]} 18. b3 {[%emt 0:00:52]} Ke7 {[%emt 0:01:07]} 19. Nb2 {[%emt 0:18:47]} Rhc8 {[%emt 0:19:26]} 20. h4 {[%emt 0:08:57]} Bf6 {[%emt 0:01:36]} 21. fxe6 {[%emt 0:05:18]} fxe6 {[%emt 0:00:24]} 22. h5 {[%emt 0:01:04]} g5 {[%emt 0:00:07]} 23. Bg2 {[%emt 0:09:17]} g4 {[%emt 0:02:19]} 24. Rhf1 {[%emt 0:03:47]} Bb5 {[%emt 0:01:45]} 25. Nxb5 {[%emt 0:02:40]} axb5 {[%emt 0:00:08]} 26. Qd2 {[%emt 0:01:45]} Ra6 {[%emt 0:25:13]} 27. Rxf6 {[%emt 0:05:07]} Kxf6 {[%emt 0:02:13]} 28. Qh6+ {[%emt 0:02:32]} Ke7 {[%emt 0:04:03]} 29. Qxh7+ {[%emt 0:00:56]} Kd8 {[%emt 0:00:44]} 30. Qg8+ {[%emt 0:01:09]} Kd7 {[%emt 0:00:08]} 31. Qg7+ {[%emt 0:00:48]} Kc6 {[%emt 0:00:10]} 32. Qf6 {[%emt 0:01:02]} Kb7 {[%emt 0:03:18]} 33. Qf2 {[%emt 0:02:31]} g3 {[%emt 0:01:32]} 34. Qd2 {[%emt 0:01:54]} Qa5 {[%emt 0:00:17]} 35. Qd4 {[%emt 0:00:54]} Qxa2+ {[%emt 0:00:22]} 36. Kc1 {[%emt 0:00:04]} Rac6 {[%emt 0:00:09]} 37. Qd2 {[%emt 0:01:06]} Qa1# {[%emt 0:00:04]} 0-1

[Event "Najdorf Memorial-A 2022"]
[Site "Warsaw"]
[Date "2022.07.10"]
[Round "2.6"]
[White "Kaczmarska, Joanna"]
[Black "Sarkar, Justin"]
[Result "1/2-1/2"]
[ECO "B20"]
[WhiteElo "1965"]
[BlackElo "2346"]
[Annotator "RC"]
[PlyCount "96"]
[EventDate "2022.07.09"]
[EventType "swiss"]
[EventCountry "POL"]
[SourceTitle "playchess.com"]
[Source "ChessBase"]
[SourceQuality "1"]
[TimeControl "40/5400+30:1800+30"]

1. e4 {[%emt 0:00:02]} c5 {[%emt 0:00:18]} 2. c4 {[%emt 0:07:50]} Nc6 {[%emt 0:00:24]} 3. Nc3 {[%emt 0:01:50]} g6 {[%emt 0:03:45]} 4. d3 {[%emt 0:02:20]} Bg7 {[%emt 0:00:20]} 5. Be3 {[%emt 0:00:58]} d6 {[%emt 0:01:18]} 6. Qd2 {[%emt 0:02:29]} a6 {[%emt 0:02:52]} 7. Nge2 {[%emt 0:07:31]} Nd4 {[%emt 0:02:39]} 8. Rb1 {[%emt 0:09:22]} e6 {[%emt 0:21:10]} 9. Bg5 {[%emt 0:09:45]} Qa5 {[%emt 0:04:30]} 10. b3 {[%emt 0:03:30]} Ne7 {[%emt 0:19:45]} 11. Nxd4 {[%emt 0:09:26]} Bxd4 {[%emt 0:00:12]} 12. Ne2 {[%emt 0:02:08]} Qxd2+ {[%emt 0:00:09]} 13. Bxd2 {[%emt 0:01:07]} Bg7 {[%emt 0:01:15]} 14. Bc3 {[%emt 0:03:53]} Bxc3+ {[%emt 0:06:30]} 15. Nxc3 {[%emt 0:00:12]} Nc6 {[%emt 0:00:02]} 16. g3 {[%emt 0:06:05]} Rb8 {[%emt 0:00:26]} 17. Bg2 {[%emt 0:03:00]} b5 {[%emt 0:00:16]} 18. O-O {[%emt 0:02:42]} b4 {[%emt 0:04:15]} 19. Ne2 {[%emt 0:09:11]} e5 {[%emt 0:00:15]} 20. Ra1 {[%emt 0:02:36]} g5 {[%emt 0:07:18]} 21. f4 {[%emt 0:01:58]} gxf4 {[%emt 0:00:10]} 22. gxf4 {[%emt 0:00:05]} Ke7 {[%emt 0:01:34]} 23. f5 {[%emt 0:01:05]} f6 {[%emt 0:00:27]} 24. Rf3 {[%emt 0:02:24]} Bb7 {[%emt 0:08:18]} 25. Rg3 {[%emt 0:00:25]} Rhg8 {[%emt 0:01:13]} 26. Kf2 {[%emt 0:00:49]} a5 {[%emt 0:00:41]} 27. a4 {[%emt 0:04:14]} bxa3 {[%emt 0:02:43]} 28. Rxa3 {[%emt 0:00:04]} Rxg3 {[%emt 0:00:09]} 29. hxg3 {[%emt 0:01:00]} Ra8 {[%emt 0:00:05]} 30. Nc3 {[%emt 0:02:29]} Nd4 {[%emt 0:00:11]} 31. Ra1 {[%emt 0:01:39]} Bc6 32. Ra3 {[%emt 0:03:18]} Rb8 {[%emt 0:05:19]} 33. Rxa5 {[%emt 0:00:25]} Rxb3 {[%emt 0:00:07]} 34. Ra7+ {[%emt 0:00:16]} Kf8 {[%emt 0:04:18]} 35. Nd5 {[%emt 0:00:23]} Bxd5 36. exd5 {[%emt 0:00:38]} Rb2+ {[%emt 0:02:20]} 37. Kg1 {[%emt 0:01:04]} Nxf5 {[%emt 0:00:09]} 38. Be4 {[%emt 0:00:41]} Nxg3 {[%emt 0:01:23]} 39. Bxh7 {[%emt 0:00:21]} f5 40. Rd7 {[%emt 0:00:00]} f4 {[%emt 0:00:00]} 41. Rxd6 {[%emt 0:18:52]} Kg7 {[%emt 0:04:01]} 42. Be4 {[%emt 0:01:31]} Nxe4 {[%emt 0:00:38]} 43. dxe4 {[%emt 0:00:06]} Re2 44. Re6 Rxe4 {[%emt 0:00:30]} 45. d6 {[%emt 0:08:15]} Rxc4 {[%emt 0:01:42]} 46. Rxe5 Rd4 47. Rxc5 {[%emt 0:01:07]} Rxd6 {[%emt 0:00:28]} 48. Kf2 {[%emt 0:01:11]} Kg6 {[%emt 0:00:05]} 1/2-1/2

[Event "Najdorf Memorial-A 2022"]
[Site "Warsaw"]
[Date "2022.07.10"]
[Round "2.6"]
[White "Adamski, Adam"]
[Black "Backiel, Hubert"]
[Result "0-1"]
[ECO "B94"]
[WhiteElo "1784"]
[BlackElo "2045"]
[Annotator "NA RC"]
[PlyCount "82"]
[EventDate "2022.07.09"]
[EventType "swiss"]
[EventCountry "POL"]
[SourceTitle "playchess.com"]
[Source "ChessBase"]
[SourceQuality "1"]
[TimeControl "40/5400+30:1800+30"]

1. e4 {[%emt 0:00:03]} c5 {[%emt 0:00:03]} 2. Nf3 {[%emt 0:00:13]} d6 {[%emt 0:00:05]} 3. d4 {[%emt 0:00:15]} cxd4 {[%emt 0:00:07]} 4. Nxd4 {[%emt 0:00:06]} Nf6 {[%emt 0:00:05]} 5. Nc3 {[%emt 0:00:05]} a6 {[%emt 0:00:05]} 6. Bg5 {[%emt 0:02:03]} Nbd7 {[%emt 0:00:09]} 7. f4 {[%emt 0:02:44]} Qc7 {[%emt 0:00:40]} 8. Qf3 {[%emt 0:04:07]} b5 {[%emt 0:00:17]} 9. Bd3 {[%emt 0:16:28]} Bb7 {[%emt 0:01:58]} 10. a3 {[%emt 0:07:25]} g6 {[%emt 0:02:51]} 11. Bh4 {[%emt 0:09:30]} Bg7 {[%emt 0:01:41]} 12. Bf2 {[%emt 0:00:52]} O-O {[%emt 0:03:10]} 13. O-O {[%emt 0:04:55]} e5 {[%emt 0:05:16]} 14. Nde2 {[%emt 0:04:35]} Rfe8 {[%emt 0:10:47]} 15. f5 {[%emt 0:07:35]} d5 {[%emt 0:30:33]} 16. Ng3 {[%emt 0:04:07]} Nc5 {[%emt 0:02:19]} 17. Bxc5 {[%emt 0:08:53]} Qxc5+ {[%emt 0:00:10]} 18. Kh1 {[%emt 0:00:04]} Kh8 {[%emt 0:09:55]} 19. fxg6 {[%emt 0:04:00]} fxg6 {[%emt 0:00:07]} 20. Qe2 {[%emt 0:00:11]} d4 {[%emt 0:03:56]} 21. Nd1 {[%emt 0:02:26]} Bc8 {[%emt 0:01:15]} 22. Nf2 {[%emt 0:01:56]} Bh6 {[%emt 0:04:14]} 23. Rfe1 {[%emt 0:03:02]} Ra7 {[%emt 0:03:38]} 24. a4 {[%emt 0:01:48]} b4 {[%emt 0:01:14]} 25. b3 {[%emt 0:00:16]} Bf4 {[%emt 0:02:42]} 26. Nf1 {[%emt 0:00:23]} Rf8 {[%emt 0:01:20]} 27. Nd2 {[%emt 0:00:41]} a5 {[%emt 0:00:25]} 28. Bc4 {[%emt 0:00:49]} Qe7 {[%emt 0:01:35]} 29. Nd3 {[%emt 0:04:30]} Bg4 {[%emt 0:02:50]} 30. Nf3 {[%emt 0:00:25]} Nh5 {[%emt 0:01:30]} 31. Rf1 {[%emt 0:01:02]} Qg7 {[%emt 0:02:41]} 32. Qe1 {[%emt 0:00:25]} g5 {[%emt 0:06:31]} 33. Ndxe5 {[%emt 0:04:03]} Bxf3 {[%emt 0:01:28]} 34. Nxf3 {[%emt 0:01:22]} Qh6 {[%emt 0:00:03]} 35. g4 {[%emt 0:04:35]} Ng3+ {[%emt 0:00:20]} 36. Kg2 {[%emt 0:00:02]} Nxf1 {[%emt 0:00:28]} 37. Qxf1 {[%emt 0:00:59]} Re7 {[%emt 0:00:37]} 38. Qd3 {[%emt 0:00:46]} Be3 {[%emt 0:00:17]} 39. Rf1 {[%emt 0:00:56]} Rf4 {[%emt 0:00:29]} 40. h3 {[%emt 0:00:00]} Rexe4 {[%emt 0:00:00]} 41. Nh2 {[%emt 0:07:03]} Qh4 {[%emt 0:07:26]} 0-1

[Event "Najdorf Memorial-A 2022"]
[Site "Warsaw"]
[Date "2022.07.10"]
[Round "2.7"]
[White "Zdybel, Przemyslaw"]
[Black "Michalska, Aleksandra"]
[Result "1-0"]
[ECO "B06"]
[WhiteElo "2026"]
[BlackElo "1814"]
[Annotator "NA RC"]
[PlyCount "103"]
[EventDate "2022.07.09"]
[EventType "swiss"]
[EventCountry "POL"]
[SourceTitle "playchess.com"]
[Source "ChessBase"]
[SourceQuality "1"]
[TimeControl "40/5400+30:1800+30"]

1. e4 {[%emt 0:00:03]} g6 {[%emt 0:00:21]} 2. d4 {[%emt 0:00:04]} Bg7 {[%emt 0:00:59]} 3. Nc3 {[%emt 0:00:05]} d6 {[%emt 0:01:24]} 4. Be3 {[%emt 0:00:12]} Nf6 {[%emt 0:02:53]} 5. Qd2 {[%emt 0:00:18]} Ng4 {[%emt 0:03:34]} 6. Bf4 {[%emt 0:07:25]} e5 {[%emt 0:06:39]} 7. dxe5 {[%emt 0:00:18]} Nxe5 {[%emt 0:01:30]} 8. O-O-O {[%emt 0:00:36]} Nbc6 {[%emt 0:03:58]} 9. Bg5 {[%emt 0:03:51]} f6 {[%emt 0:03:19]} 10. Bh6 {[%emt 0:06:29]} Bxh6 {[%emt 0:04:27]} 11. Qxh6 {[%emt 0:00:06]} Qd7 {[%emt 0:07:35]} 12. h3 {[%emt 0:09:39]} Qf7 {[%emt 0:07:50]} 13. Nd5 {[%emt 0:02:01]} Nd8 {[%emt 0:04:35]} 14. f4 {[%emt 0:10:14]} Nec6 {[%emt 0:01:09]} 15. Nf3 {[%emt 0:25:13]} Be6 {[%emt 0:06:42]} 16. g4 {[%emt 0:04:12]} Kd7 {[%emt 0:08:55]} 17. f5 {[%emt 0:08:27]} Bxd5 {[%emt 0:01:14]} 18. exd5 {[%emt 0:00:14]} Ne5 {[%emt 0:00:31]} 19. Nxe5+ {[%emt 0:00:32]} dxe5 {[%emt 0:03:08]} 20. Bd3 {[%emt 0:08:56]} Rg8 {[%emt 0:02:17]} 21. fxg6 {[%emt 0:00:26]} hxg6 {[%emt 0:00:07]} 22. Rhf1 {[%emt 0:00:40]} Ke7 {[%emt 0:02:49]} 23. Qe3 {[%emt 0:02:50]} Qxd5 {[%emt 0:04:44]} 24. Be4 {[%emt 0:03:51]} Qb5 {[%emt 0:02:58]} 25. Bd5 {[%emt 0:02:13]} Ne6 {[%emt 0:03:12]} 26. g5 {[%emt 0:02:14]} Nxg5 {[%emt 0:00:50]} 27. Qa3+ {[%emt 0:01:28]} c5 {[%emt 0:00:36]} 28. Bxg8 {[%emt 0:00:44]} Rxg8 {[%emt 0:00:02]} 29. Qxa7 {[%emt 0:00:51]} Ne6 {[%emt 0:03:40]} 30. a4 {[%emt 0:00:15]} Qc6 {[%emt 0:00:20]} 31. Rd3 {[%emt 0:00:37]} Rd8 {[%emt 0:01:47]} 32. Rb3 {[%emt 0:00:11]} Rd7 {[%emt 0:00:25]} 33. Kb1 {[%emt 0:00:42]} Qg2 {[%emt 0:00:53]} 34. Rc1 {[%emt 0:00:20]} g5 {[%emt 0:03:06]} 35. Rb6 {[%emt 0:00:57]} Qd5 {[%emt 0:03:02]} 36. a5 {[%emt 0:00:27]} c4 {[%emt 0:00:59]} 37. Qa8 {[%emt 0:00:16]} Nd8 {[%emt 0:00:21]} 38. Rf1 {[%emt 0:00:36]} f5 {[%emt 0:01:05]} 39. Rg6 {[%emt 0:00:38]} c3 {[%emt 0:01:53]} 40. Rg7+ {[%emt 0:00:00]} Kf6 {[%emt 0:00:00]} 41. Rxd7 {[%emt 0:03:28]} Qxd7 {[%emt 0:00:37]} 42. a6 {[%emt 0:02:40]} bxa6 {[%emt 0:02:49]} 43. Qxa6+ {[%emt 0:00:09]} Qc6 {[%emt 0:00:29]} 44. Qd3 {[%emt 0:01:59]} Qc8 {[%emt 0:00:21]} 45. b4 {[%emt 0:03:34]} f4 {[%emt 0:06:50]} 46. h4 {[%emt 0:18:20]} gxh4 {[%emt 0:03:35]} 47. Rg1 {[%emt 0:00:08]} Nf7 {[%emt 0:01:38]} 48. Rg6+ {[%emt 0:00:57]} Ke7 {[%emt 0:00:39]} 49. Rg7 {[%emt 0:03:30]} Qc6 {[%emt 0:05:59]} 50. b5 {[%emt 0:00:44]} Qb7 {[%emt 0:01:04]} 51. Rxf7+ {[%emt 0:00:07]} Kxf7 {[%emt 0:00:06]} 52. Qh7+ {[%emt 0:00:04]} 1-0

[Event "Najdorf Memorial-A 2022"]
[Site "Warsaw"]
[Date "2022.07.10"]
[Round "2.7"]
[White "Polak, Michal"]
[Black "Nowak, Lukasz"]
[Result "*"]
[ECO "B90"]
[WhiteElo "1944"]
[BlackElo "2327"]
[Annotator "RC"]
[PlyCount "75"]
[EventDate "2022.07.09"]
[EventType "swiss"]
[EventCountry "POL"]
[SourceTitle "playchess.com"]
[Source "ChessBase"]
[SourceQuality "1"]
[TimeControl "40/5400+30:1800+30"]

1. e4 c5 2. Nf3 d6 3. d4 cxd4 4. Nxd4 Nf6 5. Nc3 a6 6. Be3 e5 7. Nf3 Be7 8. Bc4 Be6 9. Bb3 Nbd7 10. O-O Rc8 11. Bg5 O-O 12. Qe2 Qc7 13. Bxf6 Nxf6 14. Ng5 Bc4 15. Bxc4 Qxc4 16. Rfe1 b5 17. a3 Rc6 18. Nf3 Rb8 19. Nd2 Qxe2 20. Rxe2 Bd8 21. Nb3 a5 22. a4 b4 23. Nb5 Bb6 24. Rd1 Rd8 25. Kf1 Kf8 26. f3 Ke7 27. Red2 h5 28. h4 g6 29. Ke2 Ne8 30. c3 bxc3 31. Nxc3 Nc7 32. Nd5+ Nxd5 33. Rxd5 Rb8 34. Rb5 Rcc8 35. Rc1 Bd8 36. Rxc8 Rxc8 37. Kd3 Ra8 38. Nd2 *